[Event "NOR-ch Various 2019"]
[Site "Larvik"]
[Date "2019.07.06"]
[Round "1.36"]
[White "Schreiber, Kevin"]
[Black "Hagesather, Ellen"]
[Result "0-1"]
[ECO "A24"]
[WhiteElo "2030"]
[BlackElo "2193"]
[Annotator "NA"]
[PlyCount "84"]
[EventDate "2019.07.06"]
[EventType "swiss"]
[EventCountry "NOR"]
[SourceTitle "playchess.com"]
[Source "ChessBase"]
[SourceQuality "1"]
[TimeControl "40/5400+30:1800+30"]

1. c4 {[%emt 0:00:00]} e5 {[%emt 0:00:00]} 2. g3 {[%emt 0:00:00]} d6 {[%emt 0:00:13]} 3. Bg2 {[%emt 0:00:00]} g6 {[%emt 0:00:58]} 4. Nc3 {[%emt 0:00:35]} Bg7 {[%emt 0:00:13]} 5. e4 {[%emt 0:03:17]} c6 {[%emt 0:01:49]} 6. Nge2 {[%emt 0:00:38]} Nf6 {[%emt 0:00:38]} 7. d3 {[%emt 0:02:26]} O-O {[%emt 0:00:42]} 8. O-O {[%emt 0:00:11]} Be6 {[%emt 0:03:48]} 9. h3 {[%emt 0:02:08]} Qd7 {[%emt 0:01:50]} 10. Kh2 {[%emt 0:01:06]} d5 {[%emt 0:05:18]} 11. cxd5 {[%emt 0:01:51]} cxd5 {[%emt 0:00:12]} 12. f4 {[%emt 0:04:50]} d4 {[%emt 0:05:54]} 13. fxe5 {[%emt 0:12:58]} Ne8 {[%emt 0:05:44]} 14. Nb1 {[%emt 0:04:01]} Nc6 {[%emt 0:02:06]} 15. Nd2 {[%emt 0:03:41]} Bxe5 {[%emt 0:03:06]} 16. Nf3 {[%emt 0:00:43]} Bg7 {[%emt 0:00:33]} 17. Bf4 {[%emt 0:02:38]} h6 {[%emt 0:03:00]} 18. Qa4 {[%emt 0:06:32]} Rd8 {[%emt 0:03:55]} 19. b4 {[%emt 0:04:28]} a6 {[%emt 0:02:04]} 20. Rac1 {[%emt 0:07:57]} g5 {[%emt 0:02:15]} 21. Bd2 {[%emt 0:00:27]} f5 {[%emt 0:02:57]} 22. exf5 {[%emt 0:10:05]} Rxf5 {[%emt 0:02:21]} 23. g4 {[%emt 0:04:11]} Rb5 {[%emt 0:04:38]} 24. Rc5 {[%emt 0:02:55]} Qd6+ {[%emt 0:02:55]} 25. Ng3 {[%emt 0:02:08]} Nc7 {[%emt 0:03:43]} 26. Be1 {[%emt 0:04:29]} Ne5 {[%emt 0:05:15]} 27. Nxe5 {[%emt 0:00:13]} Bxe5 {[%emt 0:00:06]} 28. Rxb5 {[%emt 0:02:19]} axb5 {[%emt 0:01:16]} 29. Qc2 {[%emt 0:02:34]} Ra8 {[%emt 0:03:16]} 30. Qc5 {[%emt 0:02:18]} Qxc5 {[%emt 0:02:53]} 31. bxc5 {[%emt 0:00:02]} Rxa2 {[%emt 0:00:07]} 32. Kg1 {[%emt 0:01:53]} Nd5 {[%emt 0:02:00]} 33. Bxd5 {[%emt 0:02:41]} Bxd5 {[%emt 0:00:18]} 34. Ne4 {[%emt 0:00:05]} Bxe4 {[%emt 0:03:33]} 35. dxe4 {[%emt 0:00:02]} d3 {[%emt 0:00:07]} 36. Bb4 {[%emt 0:04:55]} Rb2 {[%emt 0:03:24]} 37. Ba5 {[%emt 0:01:29]} Bd4+ {[%emt 0:01:04]} 38. Kh1 {[%emt 0:00:05]} d2 {[%emt 0:00:31]} 39. Rd1 {[%emt 0:00:45]} b4 {[%emt 0:00:57]} 40. Kg2 {[%emt 0:03:32]} Bxc5 {[%emt 0:00:28]} 41. Bc7 {[%emt 0:04:22]} Rc2 {[%emt 0:00:46]} 42. Kf3 {[%emt 0:01:51]} b3 {[%emt 0:00:46]} 0-1

[Event "NOR-ch Various 2019"]
[Site "Larvik"]
[Date "2019.07.06"]
[Round "1.37"]
[White "Thanke, Bror"]
[Black "Fossan, Andreas"]
[Result "1/2-1/2"]
[ECO "C11"]
[WhiteElo "2191"]
[BlackElo "2023"]
[Annotator "NA"]
[PlyCount "96"]
[EventDate "2019.07.06"]
[EventType "swiss"]
[EventCountry "NOR"]
[SourceTitle "playchess.com"]
[Source "ChessBase"]
[SourceQuality "1"]
[TimeControl "40/5400+30:1800+30"]

1. e4 {[%emt 0:00:00]} e6 {[%emt 0:00:00]} 2. d4 {[%emt 0:00:00]} d5 {[%emt 0:00:00]} 3. Nc3 {[%emt 0:00:00]} Nf6 {[%emt 0:00:20]} 4. e5 {[%emt 0:00:41]} Nfd7 {[%emt 0:00:05]} 5. f4 {[%emt 0:00:06]} c5 {[%emt 0:00:09]} 6. Nf3 {[%emt 0:00:10]} Nc6 {[%emt 0:00:13]} 7. Be3 {[%emt 0:00:16]} a6 {[%emt 0:00:23]} 8. Qd2 {[%emt 0:01:22]} b5 {[%emt 0:00:20]} 9. Be2 {[%emt 0:04:25]} Be7 {[%emt 0:04:36]} 10. Nd1 {[%emt 0:09:15]} O-O {[%emt 0:02:50]} 11. O-O {[%emt 0:02:33]} b4 {[%emt 0:04:55]} 12. Nf2 {[%emt 0:05:11]} a5 {[%emt 0:06:14]} 13. Kh1 {[%emt 0:08:11]} Ba6 {[%emt 0:08:52]} 14. Bxa6 {[%emt 0:00:22]} Rxa6 {[%emt 0:02:30]} 15. dxc5 {[%emt 0:03:04]} h6 {[%emt 0:27:38]} 16. Nd3 {[%emt 0:02:28]} Qc7 {[%emt 0:04:32]} 17. Rac1 {[%emt 0:10:16]} Rb8 {[%emt 0:03:48]} 18. Qf2 {[%emt 0:02:23]} a4 {[%emt 0:03:48]} 19. Qg3 {[%emt 0:11:43]} d4 {[%emt 0:04:41]} 20. Nxd4 {[%emt 0:05:47]} Nxd4 {[%emt 0:00:51]} 21. Bxd4 {[%emt 0:00:10]} Nxc5 {[%emt 0:03:27]} 22. Nf2 {[%emt 0:14:36]} Rc6 {[%emt 0:02:52]} 23. c4 {[%emt 0:06:46]} bxc3 {[%emt 0:05:04]} 24. Qxc3 {[%emt 0:01:40]} Rc8 {[%emt 0:01:43]} 25. Qe3 {[%emt 0:00:29]} Qb7 {[%emt 0:04:32]} 26. Rcd1 {[%emt 0:01:42]} Qb5 {[%emt 0:01:32]} 27. Rfe1 {[%emt 0:00:42]} Bh4 {[%emt 0:00:40]} 28. Re2 {[%emt 0:02:26]} Bxf2 {[%emt 0:02:14]} 29. Rxf2 {[%emt 0:00:53]} Na6 {[%emt 0:00:48]} 30. a3 {[%emt 0:01:30]} Nc7 {[%emt 0:00:43]} 31. h3 {[%emt 0:01:27]} Nd5 {[%emt 0:00:25]} 32. Qd3 {[%emt 0:01:31]} Qxd3 {[%emt 0:01:46]} 33. Rxd3 {[%emt 0:00:04]} Rc2 {[%emt 0:00:36]} 34. f5 {[%emt 0:02:28]} Rxf2 {[%emt 0:01:16]} 35. Bxf2 {[%emt 0:00:02]} Rc2 {[%emt 0:00:15]} 36. fxe6 {[%emt 0:00:36]} fxe6 {[%emt 0:00:15]} 37. Bd4 {[%emt 0:01:10]} Kf7 {[%emt 0:01:52]} 38. Rf3+ {[%emt 0:00:56]} Kg6 {[%emt 0:00:48]} 39. Kh2 {[%emt 0:00:43]} Rd2 {[%emt 0:00:47]} 40. Bc5 {[%emt 0:00:59]} Rxb2 {[%emt 0:01:05]} 41. Rg3+ {[%emt 0:02:19]} Kf7 {[%emt 0:07:06]} 42. Rg4 {[%emt 0:02:12]} Rb5 {[%emt 0:03:15]} 43. Bd6 {[%emt 0:02:50]} Ra5 {[%emt 0:01:53]} 44. h4 {[%emt 0:01:42]} Ra8 {[%emt 0:02:15]} 45. h5 {[%emt 0:01:02]} Ra7 {[%emt 0:01:07]} 46. Rg3 {[%emt 0:01:41]} Ra8 {[%emt 0:01:00]} 47. Rf3+ {[%emt 0:02:22]} Kg8 {[%emt 0:00:18]} 48. g3 {[%emt 0:05:33]} Rc8 {[%emt 0:01:22]} 1/2-1/2

[Event "NOR-ch Various 2019"]
[Site "Larvik"]
[Date "2019.07.06"]
[Round "1.38"]
[White "Kvam, Audun"]
[Black "Martinsen, Stig K"]
[Result "1/2-1/2"]
[ECO "B07"]
[WhiteElo "2017"]
[BlackElo "2177"]
[Annotator "NA"]
[PlyCount "72"]
[EventDate "2019.07.06"]
[EventType "swiss"]
[EventCountry "NOR"]
[SourceTitle "playchess.com"]
[Source "ChessBase"]
[SourceQuality "1"]
[TimeControl "40/5400+30:1800+30"]

1. e4 {[%emt 0:00:00]} d6 {[%emt 0:00:00]} 2. Nc3 {[%emt 0:00:31]} g6 {[%emt 0:00:16]} 3. f4 {[%emt 0:03:01]} Bg7 {[%emt 0:06:34]} 4. Nf3 {[%emt 0:01:10]} Bg4 {[%emt 0:05:33]} 5. Be2 {[%emt 0:06:10]} Nc6 {[%emt 0:08:24]} 6. d3 {[%emt 0:12:00]} e6 {[%emt 0:02:42]} 7. O-O {[%emt 0:07:25]} Nge7 {[%emt 0:01:22]} 8. Qe1 {[%emt 0:02:02]} Qd7 {[%emt 0:12:10]} 9. a4 {[%emt 0:04:45]} h6 {[%emt 0:04:20]} 10. a5 {[%emt 0:13:13]} a6 {[%emt 0:04:03]} 11. Nd1 {[%emt 0:08:54]} e5 {[%emt 0:23:41]} 12. c3 {[%emt 0:04:27]} Be6 {[%emt 0:01:50]} 13. Nf2 {[%emt 0:13:57]} f5 {[%emt 0:10:23]} 14. exf5 {[%emt 0:07:34]} gxf5 {[%emt 0:00:44]} 15. Be3 {[%emt 0:00:39]} Nd5 {[%emt 0:01:14]} 16. Bd2 {[%emt 0:01:15]} O-O {[%emt 0:06:02]} 17. Qc1 {[%emt 0:07:54]} Kh7 {[%emt 0:00:52]} 18. Kh1 {[%emt 0:00:49]} Rae8 {[%emt 0:01:51]} 19. Ng1 {[%emt 0:01:13]} Nf6 {[%emt 0:03:44]} 20. Bf3 {[%emt 0:00:29]} Bd5 {[%emt 0:00:47]} 21. Qc2 {[%emt 0:00:27]} Kh8 {[%emt 0:01:04]} 22. Rfe1 {[%emt 0:01:47]} Qf7 {[%emt 0:00:40]} 23. b4 {[%emt 0:00:09]} Qg6 {[%emt 0:01:59]} 24. Bxd5 {[%emt 0:00:53]} Nxd5 {[%emt 0:00:02]} 25. Nf3 {[%emt 0:00:37]} exf4 {[%emt 0:00:39]} 26. Nh3 {[%emt 0:00:49]} Qg4 {[%emt 0:00:55]} 27. Nf2 {[%emt 0:00:40]} Qh5 {[%emt 0:00:16]} 28. Nh3 {[%emt 0:00:13]} Ne3 {[%emt 0:00:34]} 29. Bxe3 {[%emt 0:00:42]} fxe3 {[%emt 0:00:09]} 30. Nf4 {[%emt 0:00:39]} Qg4 {[%emt 0:01:26]} 31. Nh4 {[%emt 0:00:30]} Ne5 {[%emt 0:00:32]} 32. g3 {[%emt 0:00:25]} Bf6 {[%emt 0:00:29]} 33. Nhg2 {[%emt 0:00:28]} Qg7 {[%emt 0:00:37]} 34. Nxe3 {[%emt 0:00:21]} Bg5 {[%emt 0:00:12]} 35. Neg2 {[%emt 0:00:29]} Qf7 {[%emt 0:00:39]} 36. d4 {[%emt 0:00:47]} Ng6 {[%emt 0:00:29]} 1/2-1/2

[Event "NOR-ch Various 2019"]
[Site "Larvik"]
[Date "2019.07.06"]
[Round "1.39"]
[White "Fossan, Aleksander"]
[Black "Rasmussen, Jonas H"]
[Result "1-0"]
[ECO "C50"]
[WhiteElo "2155"]
[BlackElo "2017"]
[Annotator "NA"]
[PlyCount "117"]
[EventDate "2019.07.06"]
[EventType "swiss"]
[EventCountry "NOR"]
[SourceTitle "playchess.com"]
[Source "ChessBase"]
[SourceQuality "1"]
[TimeControl "40/5400+30:1800+30"]

1. e4 {[%emt 0:00:00]} e5 {[%emt 0:00:00]} 2. Nf3 {[%emt 0:00:00]} Nc6 {[%emt 0:00:00]} 3. Bc4 {[%emt 0:00:00]} Bc5 {[%emt 0:00:00]} 4. d3 {[%emt 0:00:03]} Nf6 {[%emt 0:00:36]} 5. Nc3 {[%emt 0:00:19]} d6 {[%emt 0:01:30]} 6. Bg5 {[%emt 0:00:22]} h6 {[%emt 0:00:34]} 7. Bxf6 {[%emt 0:00:05]} Qxf6 {[%emt 0:00:29]} 8. Nd5 {[%emt 0:00:06]} Qd8 {[%emt 0:00:36]} 9. c3 {[%emt 0:00:04]} a6 {[%emt 0:02:27]} 10. d4 {[%emt 0:00:06]} Ba7 {[%emt 0:01:17]} 11. dxe5 {[%emt 0:00:07]} Nxe5 {[%emt 0:04:17]} 12. Nxe5 {[%emt 0:00:06]} dxe5 {[%emt 0:01:02]} 13. Qh5 {[%emt 0:00:06]} O-O {[%emt 0:05:35]} 14. Qxe5 {[%emt 0:00:05]} c6 {[%emt 0:01:48]} 15. Ne7+ {[%emt 0:04:16]} Kh8 {[%emt 0:02:32]} 16. Nxc8 {[%emt 0:04:38]} Rxc8 {[%emt 0:01:54]} 17. O-O {[%emt 0:01:24]} Qh4 {[%emt 0:08:17]} 18. Qf5 {[%emt 0:06:25]} Rce8 {[%emt 0:08:33]} 19. Bd3 {[%emt 0:06:09]} g6 {[%emt 0:13:39]} 20. Qf3 {[%emt 0:00:57]} Kg7 {[%emt 0:01:35]} 21. Rad1 {[%emt 0:01:44]} Re5 {[%emt 0:05:25]} 22. Bc2 {[%emt 0:03:24]} Qe7 {[%emt 0:04:46]} 23. Rd2 {[%emt 0:09:45]} Rd8 {[%emt 0:04:13]} 24. Rxd8 {[%emt 0:00:03]} Qxd8 {[%emt 0:00:06]} 25. Rd1 {[%emt 0:00:06]} Qe7 {[%emt 0:01:46]} 26. g3 {[%emt 0:01:37]} Re6 {[%emt 0:01:22]} 27. Qd3 {[%emt 0:12:24]} Rf6 {[%emt 0:04:10]} 28. Rd2 {[%emt 0:00:25]} Qc5 {[%emt 0:05:16]} 29. Qf1 {[%emt 0:01:45]} Qg5 {[%emt 0:02:50]} 30. Qe1 {[%emt 0:02:26]} h5 {[%emt 0:02:30]} 31. Kg2 {[%emt 0:08:14]} Qc5 {[%emt 0:06:14]} 32. e5 {[%emt 0:03:31]} Re6 {[%emt 0:00:32]} 33. f4 {[%emt 0:00:15]} Re7 {[%emt 0:01:03]} 34. Re2 {[%emt 0:05:28]} Qd5+ {[%emt 0:00:33]} 35. Be4 {[%emt 0:00:10]} Qxa2 {[%emt 0:01:25]} 36. g4 {[%emt 0:09:27]} hxg4 {[%emt 0:02:40]} 37. Qh4 {[%emt 0:00:01]} Qc4 {[%emt 0:01:46]} 38. Qxg4 {[%emt 0:00:22]} Qc5 {[%emt 0:01:26]} 39. Kf3 {[%emt 0:05:14]} Qa5 {[%emt 0:03:18]} 40. Qg5 {[%emt 0:03:01]} Re6 {[%emt 0:00:58]} 41. h4 {[%emt 0:32:17]} Qa1 {[%emt 0:30:58]} 42. Qg2 {[%emt 0:01:39]} Qg1 {[%emt 0:00:00]} 43. h5 {[%emt 0:00:00]} Qxg2+ {[%emt 0:00:00]} 44. Rxg2 {[%emt 0:00:00]} a5 {[%emt 0:00:00]} 45. hxg6 {[%emt 0:00:00]} fxg6 {[%emt 0:00:00]} 46. Bf5 {[%emt 0:00:00]} Re7 {[%emt 0:00:00]} 47. Rxg6+ {[%emt 0:00:00]} Kf7 {[%emt 0:00:00]} 48. Ke4 {[%emt 0:00:00]} Bc5 {[%emt 0:00:00]} 49. e6+ {[%emt 0:00:00]} Kf8 {[%emt 0:00:00]} 50. Ke5 {[%emt 0:00:00]} Rg7 {[%emt 0:00:00]} 51. Rh6 {[%emt 0:00:00]} Ke7 {[%emt 0:00:00]} 52. Bh3 {[%emt 0:00:00]} Be3 {[%emt 0:00:00]} 53. Rh8 {[%emt 0:00:00]} Bc1 {[%emt 0:00:00]} 54. Rb8 {[%emt 0:00:00]} b5 {[%emt 0:00:00]} 55. Rb7+ {[%emt 0:00:00]} Kf8 {[%emt 0:00:10]} 56. Rxg7 {[%emt 0:00:00]} Kxg7 {[%emt 0:00:09]} 57. e7 {[%emt 0:00:00]} Kf7 {[%emt 0:00:13]} 58. Kd6 {[%emt 0:00:00]} Bxf4+ {[%emt 0:00:58]} 59. Kd7 {[%emt 0:00:00]} 1-0

[Event "NOR-ch Various 2019"]
[Site "Larvik"]
[Date "2019.07.06"]
[Round "1.40"]
[White "Carlsen, Christian Heen"]
[Black "Esbensen, Arnt"]
[Result "1/2-1/2"]
[ECO "A44"]
[WhiteElo "2013"]
[BlackElo "2153"]
[Annotator "NA"]
[PlyCount "84"]
[EventDate "2019.07.06"]
[EventType "swiss"]
[EventCountry "NOR"]
[SourceTitle "playchess.com"]
[Source "ChessBase"]
[SourceQuality "1"]
[TimeControl "40/5400+30:1800+30"]

1. d4 {[%emt 0:00:00]} c5 {[%emt 0:00:13]} 2. d5 {[%emt 0:01:56]} e5 {[%emt 0:00:10]} 3. e4 {[%emt 0:01:04]} d6 {[%emt 0:00:47]} 4. Nc3 {[%emt 0:01:10]} Be7 {[%emt 0:04:06]} 5. f4 {[%emt 0:02:44]} exf4 {[%emt 0:08:05]} 6. Bxf4 {[%emt 0:06:24]} a6 {[%emt 0:00:46]} 7. a4 {[%emt 0:05:38]} Bg5 {[%emt 0:04:19]} 8. Bg3 {[%emt 0:01:50]} Bh4 {[%emt 0:04:00]} 9. Nf3 {[%emt 0:12:14]} Bxg3+ {[%emt 0:08:21]} 10. hxg3 {[%emt 0:00:49]} Ne7 {[%emt 0:15:33]} 11. Qd2 {[%emt 0:13:19]} Ng6 {[%emt 0:01:56]} 12. Bd3 {[%emt 0:01:09]} Nd7 {[%emt 0:00:42]} 13. Nd1 {[%emt 0:11:51]} Nde5 {[%emt 0:02:00]} 14. Ne3 {[%emt 0:01:07]} Qf6 {[%emt 0:04:48]} 15. O-O-O {[%emt 0:07:08]} O-O {[%emt 0:08:52]} 16. Rdf1 {[%emt 0:02:07]} b5 {[%emt 0:00:57]} 17. Rh5 {[%emt 0:04:07]} Nxf3 {[%emt 0:10:41]} 18. Rxf3 {[%emt 0:00:27]} Qd4 {[%emt 0:00:31]} 19. Nf5 {[%emt 0:07:34]} Bxf5 {[%emt 0:11:22]} 20. exf5 {[%emt 0:00:11]} c4 {[%emt 0:01:08]} 21. fxg6 {[%emt 0:08:15]} fxg6 {[%emt 0:00:24]} 22. Bxg6 {[%emt 0:02:21]} Qg1+ {[%emt 0:00:23]} 23. Qd1 {[%emt 0:00:08]} Qxd1+ {[%emt 0:00:11]} 24. Kxd1 {[%emt 0:00:06]} hxg6 {[%emt 0:00:24]} 25. Rg5 {[%emt 0:00:30]} Rxf3 {[%emt 0:00:59]} 26. gxf3 {[%emt 0:00:06]} Kf7 {[%emt 0:00:15]} 27. Kd2 {[%emt 0:01:28]} Rh8 {[%emt 0:00:24]} 28. axb5 {[%emt 0:00:12]} axb5 {[%emt 0:00:05]} 29. Kc3 {[%emt 0:00:51]} Rh2 {[%emt 0:00:53]} 30. Rg4 {[%emt 0:02:51]} Rf2 {[%emt 0:07:53]} 31. Rf4+ {[%emt 0:00:20]} Ke7 {[%emt 0:00:13]} 32. b3 {[%emt 0:01:49]} cxb3 {[%emt 0:00:25]} 33. cxb3 {[%emt 0:00:03]} g5 {[%emt 0:00:24]} 34. Re4+ {[%emt 0:01:23]} Kd7 {[%emt 0:00:55]} 35. Re3 {[%emt 0:00:09]} Kc7 {[%emt 0:00:34]} 36. Kb4 {[%emt 0:00:41]} Rd2 {[%emt 0:02:10]} 37. Kxb5 {[%emt 0:00:08]} Rxd5+ {[%emt 0:00:06]} 38. Kc4 {[%emt 0:00:09]} Kc6 {[%emt 0:00:32]} 39. Re7 {[%emt 0:00:53]} Rc5+ {[%emt 0:00:35]} 40. Kd4 {[%emt 0:00:10]} Rb5 {[%emt 0:00:34]} 41. Rxg7 {[%emt 0:31:26]} Rxb3 {[%emt 0:31:19]} 42. Rxg5 {[%emt 0:00:18]} Rxf3 {[%emt 0:00:07]} 1/2-1/2

[Event "NOR-ch Various 2019"]
[Site "Larvik"]
[Date "2019.07.06"]
[Round "1.41"]
[White "Skotheim, Andreas"]
[Black "Kjoita, Torgeir"]
[Result "1/2-1/2"]
[ECO "A70"]
[WhiteElo "2138"]
[BlackElo "2012"]
[Annotator "NA"]
[PlyCount "81"]
[EventDate "2019.07.06"]
[EventType "swiss"]
[EventCountry "NOR"]
[SourceTitle "playchess.com"]
[Source "ChessBase"]
[SourceQuality "1"]
[TimeControl "40/5400+30:1800+30"]

1. d4 {[%emt 0:00:00]} Nf6 {[%emt 0:00:00]} 2. c4 {[%emt 0:00:05]} c5 {[%emt 0:00:00]} 3. d5 {[%emt 0:01:29]} e6 {[%emt 0:00:07]} 4. Nc3 {[%emt 0:01:23]} exd5 {[%emt 0:00:19]} 5. cxd5 {[%emt 0:00:07]} d6 {[%emt 0:00:09]} 6. Nf3 {[%emt 0:02:49]} g6 {[%emt 0:00:24]} 7. h3 {[%emt 0:05:25]} a6 {[%emt 0:06:09]} 8. a4 {[%emt 0:02:19]} Bg7 {[%emt 0:00:25]} 9. e4 {[%emt 0:08:48]} O-O {[%emt 0:02:23]} 10. Bd3 {[%emt 0:08:44]} Re8 {[%emt 0:03:30]} 11. O-O {[%emt 0:00:50]} Qc7 {[%emt 0:07:41]} 12. Qe2 {[%emt 0:05:31]} Nbd7 {[%emt 0:06:05]} 13. Be3 {[%emt 0:12:23]} Rb8 {[%emt 0:07:14]} 14. Nd2 {[%emt 0:06:12]} Ne5 {[%emt 0:20:03]} 15. Bc2 {[%emt 0:02:34]} Qe7 {[%emt 0:02:05]} 16. Rfb1 {[%emt 0:12:07]} Ned7 {[%emt 0:14:21]} 17. Nc4 {[%emt 0:06:29]} Ne5 {[%emt 0:00:27]} 18. Nb6 {[%emt 0:01:00]} Ned7 {[%emt 0:01:02]} 19. Nc4 {[%emt 0:01:57]} Ne5 {[%emt 0:00:06]} 20. Nd2 {[%emt 0:01:23]} Ned7 {[%emt 0:00:21]} 21. Re1 {[%emt 0:01:19]} Nh5 {[%emt 0:05:16]} 22. g4 {[%emt 0:02:08]} Nhf6 {[%emt 0:00:36]} 23. Bf4 {[%emt 0:02:54]} h5 {[%emt 0:04:42]} 24. Nc4 {[%emt 0:03:32]} Ne5 {[%emt 0:00:20]} 25. Nxe5 {[%emt 0:00:42]} dxe5 {[%emt 0:00:10]} 26. Bg5 {[%emt 0:00:11]} hxg4 {[%emt 0:03:27]} 27. hxg4 {[%emt 0:00:02]} Qd7 {[%emt 0:02:01]} 28. f3 {[%emt 0:00:18]} b5 {[%emt 0:00:18]} 29. axb5 {[%emt 0:01:16]} axb5 {[%emt 0:00:08]} 30. Ra5 {[%emt 0:02:06]} c4 {[%emt 0:01:13]} 31. Rea1 {[%emt 0:01:29]} b4 {[%emt 0:04:51]} 32. Nd1 {[%emt 0:01:05]} Qc7 {[%emt 0:01:16]} 33. Be3 {[%emt 0:00:48]} Nd7 {[%emt 0:01:47]} 34. b3 {[%emt 0:01:33]} c3 {[%emt 0:01:52]} 35. Nf2 {[%emt 0:00:59]} Bb7 {[%emt 0:02:04]} 36. Nd3 {[%emt 0:01:35]} Bf8 {[%emt 0:00:13]} 37. Kg2 {[%emt 0:01:29]} Ra8 {[%emt 0:01:46]} 38. Ra7 {[%emt 0:01:51]} Rxa7 {[%emt 0:01:32]} 39. Rxa7 {[%emt 0:00:38]} Ra8 {[%emt 0:00:10]} 40. Rxa8 {[%emt 0:00:59]} Bxa8 {[%emt 0:00:05]} 41. Qf2 {[%emt 0:15:08]} 1/2-1/2

[Event "NOR-ch Various 2019"]
[Site "Larvik"]
[Date "2019.07.07"]
[Round "2.1"]
[White "Strand, Kjetil"]
[Black "Hovden, Hans"]
[Result "0-1"]
[ECO "C06"]
[WhiteElo "2035"]
[BlackElo "1810"]
[Annotator "NA"]
[PlyCount "91"]
[EventDate "2019.07.06"]
[EventType "swiss"]
[EventCountry "NOR"]
[SourceTitle "playchess.com"]
[Source "ChessBase"]
[SourceQuality "1"]
[TimeControl "40/5400+30:1800+30"]

1. e4 e6 2. d4 d5 3. Nd2 Nf6 4. e5 Nfd7 5. Bd3 c5 6. c3 Nc6 7. Ngf3 f6 8. Ng5 Ndxe5 9. dxe5 fxg5 10. Qh5+ Kd7 11. Nf3 Be7 12. Nxg5 g6 13. Qg4 Bxg5 14. Bxg5 Qf8 15. Bf6 Rg8 16. O-O Kc7 17. a4 c4 18. Be2 Na5 19. Qh4 Qf7 20. Be7 b6 21. Rfd1 Kc6 22. Bf3 g5 23. Bxg5 Qf5 24. Qd4 Kc7 25. Bxd5 exd5 26. Be7 Be6 27. Bd6+ Kd7 28. Qh4 Qg5 29. Qxg5 Rxg5 30. Re1 Rag8 31. g3 Nb3 32. Rad1 Nc5 33. Bxc5 bxc5 34. f4 Rf5 35. Kf2 Kc6 36. Re3 h5 37. Kf3 Rf7 38. Rd2 Rd7 39. f5 Bxf5 40. e6 Re7 41. Re5 Bg4+ 42. Kf4 Rxe6 43. Rexd5 Rf6+ 44. Ke4 Re8+ 45. Re5 Bf3+ 46. Ke3 {[%emt 1:53:15]} 0-1

[Event "NOR-ch Various 2019"]
[Site "Larvik"]
[Date "2019.07.07"]
[Round "2.2"]
[White "Overlie, Finn"]
[Black "Stake-Larsen, Gunnar"]
[Result "0-1"]
[ECO "D48"]
[WhiteElo "1794"]
[BlackElo "1976"]
[Annotator "NA"]
[PlyCount "50"]
[EventDate "2019.07.06"]
[EventType "swiss"]
[EventCountry "NOR"]
[SourceTitle "playchess.com"]
[Source "ChessBase"]
[SourceQuality "1"]
[TimeControl "40/5400+30:1800+30"]

1. d4 {[%emt 0:00:29]} d5 {[%emt 0:00:00]} 2. c4 {[%emt 0:00:08]} e6 {[%emt 0:00:14]} 3. Nf3 {[%emt 0:01:31]} c6 {[%emt 0:00:52]} 4. e3 {[%emt 0:03:06]} Nf6 {[%emt 0:00:18]} 5. Nc3 {[%emt 0:01:09]} Nbd7 {[%emt 0:00:20]} 6. Bd3 {[%emt 0:03:45]} dxc4 {[%emt 0:06:04]} 7. Bxc4 {[%emt 0:00:13]} b5 {[%emt 0:00:13]} 8. Bd3 {[%emt 0:04:10]} a6 {[%emt 0:02:44]} 9. O-O {[%emt 0:03:36]} c5 {[%emt 0:04:27]} 10. Ne4 {[%emt 0:20:14]} Bb7 {[%emt 0:08:30]} 11. Nxf6+ {[%emt 0:04:19]} Nxf6 {[%emt 0:05:28]} 12. b3 {[%emt 0:08:30]} cxd4 {[%emt 0:08:25]} 13. exd4 {[%emt 0:02:50]} Be7 {[%emt 0:04:17]} 14. Bb2 {[%emt 0:03:17]} O-O {[%emt 0:01:44]} 15. Rc1 {[%emt 0:00:48]} Nd5 {[%emt 0:05:34]} 16. Re1 {[%emt 0:05:03]} Bf6 {[%emt 0:04:50]} 17. Ne5 {[%emt 0:08:41]} Bxe5 {[%emt 0:05:06]} 18. Rxe5 {[%emt 0:07:10]} Qf6 {[%emt 0:11:01]} 19. Be4 {[%emt 0:02:50]} Rac8 {[%emt 0:01:56]} 20. Qg4 {[%emt 0:02:58]} Qh6 {[%emt 0:05:49]} 21. Bxh7+ {[%emt 0:09:23]} Qxh7 {[%emt 0:02:06]} 22. Rh5 {[%emt 0:00:22]} Rxc1+ {[%emt 0:02:13]} 23. Bxc1 {[%emt 0:00:01]} Qb1 {[%emt 0:01:00]} 24. h3 {[%emt 0:04:18]} Qxc1+ {[%emt 0:00:44]} 25. Kh2 {[%emt 0:00:01]} Nf6 {[%emt 0:01:54]} 0-1

[Event "NOR-ch Various 2019"]
[Site "Larvik"]
[Date "2019.07.07"]
[Round "2.3"]
[White "Starli, Atle"]
[Black "Kyrkjebo, Eirik"]
[Result "1-0"]
[ECO "A52"]
[WhiteElo "1526"]
[BlackElo "1598"]
[Annotator "NA"]
[PlyCount "47"]
[EventDate "2019.07.06"]
[EventType "swiss"]
[EventCountry "NOR"]
[SourceTitle "playchess.com"]
[Source "ChessBase"]
[SourceQuality "1"]
[TimeControl "40/5400+30:1800+30"]

1. d4 {[%emt 0:00:00]} Nf6 {[%emt 0:00:00]} 2. c4 {[%emt 0:00:00]} e5 {[%emt 0:00:00]} 3. dxe5 {[%emt 0:01:00]} Ng4 {[%emt 0:00:18]} 4. Nf3 {[%emt 0:00:36]} Nc6 {[%emt 0:00:40]} 5. Bf4 {[%emt 0:01:35]} Bb4+ {[%emt 0:00:56]} 6. Nc3 {[%emt 0:00:44]} d6 {[%emt 0:08:26]} 7. exd6 {[%emt 0:03:54]} Qf6 {[%emt 0:00:32]} 8. Qd2 {[%emt 0:03:19]} cxd6 {[%emt 0:02:24]} 9. e3 {[%emt 0:04:45]} O-O {[%emt 0:02:59]} 10. Bd3 {[%emt 0:00:52]} Re8 {[%emt 0:02:44]} 11. O-O {[%emt 0:00:30]} Qe6 {[%emt 0:09:05]} 12. Ng5 {[%emt 0:06:34]} Qe7 {[%emt 0:06:09]} 13. Bxh7+ {[%emt 0:02:50]} Kf8 {[%emt 0:03:52]} 14. Bc2 {[%emt 0:01:20]} Be6 {[%emt 0:05:53]} 15. Qd3 {[%emt 0:02:14]} Nf6 {[%emt 0:04:57]} 16. Nh7+ {[%emt 0:02:14]} Nxh7 {[%emt 0:03:27]} 17. Qxh7 {[%emt 0:00:16]} Qf6 {[%emt 0:07:03]} 18. a3 {[%emt 0:04:54]} g5 {[%emt 0:08:59]} 19. Ne4 {[%emt 0:05:31]} Qf5 {[%emt 0:07:11]} 20. Qh8+ {[%emt 0:03:20]} Ke7 {[%emt 0:00:34]} 21. Bxg5+ {[%emt 0:00:26]} Qxg5 {[%emt 0:04:38]} 22. Qxe8+ {[%emt 0:03:07]} Rxe8 {[%emt 0:00:03]} 23. Nxg5 {[%emt 0:00:16]} Ba5 {[%emt 0:00:25]} 24. Nxe6 {[%emt 0:02:23]} 1-0